bitfinex/quotes_ETHUSD_20251212
["timestamp","ask_amount","ask_price","bid_price","bid_amount"]
[1765567880820,0.001,3076.8,3076.7,23.82787209]
[1765567881193,0.001,3076.8,3076.7,23.50277509]
[1765567881391,0.001,3076.8,3076.7,12.31081509]
[1765567881692,0.001,3076.8,3076.7,25.76019009]
[1765567881899,0.4866,3076.8,3076.7,7.84062116]
[1765567882103,0.001,3076.8,3076.7,9.3474468]
[1765567882305,0.001,3076.8,3076.7,9.92792209]
[1765567882507,0.001,3076.8,3076.7,20.42016809]
[1765567882709,0.001,3076.8,3076.7,14.44172509]
[1765567883296,0.001,3076.8,3076.7,9.43190745]
[1765567883649,0.001,3076.8,3076.7,13.32428009]
[1765567884608,0.001,3076.8,3076.7,14.11038009]
[1765567885140,0.001,3076.8,3076.7,14.56508009]
[1765567886026,0.001,3076.8,3076.7,18.77000009]
[1765567886909,0.001,3076.8,3076.7,18.85900009]
[1765567889038,0.001,3076.8,3076.7,19.13411409]
[1765567889936,0.001,3076.8,3076.7,20.62460209]
[1765567890137,0.001,3076.8,3076.7,20.15380709]
[1765567890730,0.001,3076.8,3076.7,14.26699809]
[1765567891147,0.001,3076.8,3076.7,24.66801209]
[1765567892045,0.001,3076.8,3076.7,28.25323009]
[1765567893121,0.001,3076.8,3076.7,28.41570909]
[1765567893652,0.001,3076.8,3076.7,24.89846209]
[1765567893865,0.001,3076.8,3076.7,22.95661409]
[1765567894016,0.001,3076.8,3076.7,17.99537309]
[1765567894214,0.001,3076.8,3076.7,17.21557609]
[1765567895057,0.001,3076.8,3076.7,6.76636209]
[1765567895220,0.001,3076.8,3076.7,18.43170209]
[1765567895422,0.001,3076.8,3076.7,17.97700209]
[1765567895736,0.001,3076.8,3076.7,18.43170209]
[1765567896121,0.001,3076.8,3076.7,29.16788009]
[1765567897232,0.001,3076.8,3076.7,28.06367009]
[1765567899069,0.7659,3076.8,3076.2,3.25068196]
[1765567899216,0.0009,3076.7,3075.6,8.41877655]
[1765567899422,0.0009,3076.7,3075.8,26.722826]
[1765567899633,0.0009,3076.7,3076.1,0.58047529]
[1765567899835,0.0009,3076.7,3076.0,0.48547529]
[1765567900038,0.0009,3076.7,3076.1,16.996334]
[1765567900444,0.0009,3076.7,3076.2,0.405504]
[1765567900648,0.001,3076.8,3076.2,0.405504]
[1765567900823,0.4596,3076.7,3075.8,0.405504]
[1765567901156,0.4596,3076.7,3075.9,16.872082]
[1765567901350,0.4596,3076.7,3076.2,10.030984]
[1765567901528,0.001,3076.8,3076.1,3.116929]
[1765567901729,0.001,3076.8,3076.7,11.23241416]
[1765567901946,0.001,3076.8,3076.7,12.33088945]
[1765567902121,0.001,3076.8,3076.7,12.78558945]
[1765567902820,0.001,3076.8,3076.7,32.54512645]
[1765567903217,0.001,3076.8,3076.7,35.79536209]
[1765567903953,0.001,3076.8,3076.7,43.82624692]
[1765567908767,0.001,3076.8,3076.7,13.82624692]
[1765567908960,0.001,3076.8,3076.7,43.82624692]
[1765567909771,0.001,3076.8,3076.7,13.82624692]
[1765567909951,0.001,3076.8,3076.7,43.82624692]
[1765567911275,0.001,3076.8,3076.7,40.63402592]
[1765567911772,0.5737,3076.8,3076.6,1.489]
[1765567911976,0.4534,3076.8,3076.7,3.25023564]
[1765567912141,0.4534,3076.8,3076.7,3.83071093]
[1765567912344,0.5811,3076.8,3076.7,3.83071093]
[1765567912574,0.5811,3076.8,3076.7,0.58047529]
[1765567913870,0.1287,3076.8,3076.7,3.83071093]
[1765567915983,0.5779,3076.8,3076.7,3.83071093]
[1765567916272,0.1287,3076.8,3076.7,3.83071093]
[1765567917450,0.001,3076.8,3076.7,22.85317293]
[1765567917675,0.001,3076.8,3076.7,29.78165776]
[1765567918350,0.001,3076.8,3076.7,13.22659976]
[1765567918550,0.001,3076.8,3076.7,43.22659976]
[1765567918746,0.001,3076.8,3076.7,43.74459976]
[1765567919168,0.001,3076.8,3076.7,45.23359976]
[1765567919560,0.001,3076.8,3076.7,40.56802676]
[1765567919958,0.001,3076.8,3076.7,40.15294076]
[1765567920374,0.4825,3076.8,3076.7,9.67920393]
[1765567920676,0.4825,3076.8,3076.7,12.58374593]
[1765567920882,0.4825,3076.8,3076.7,3.83071093]
[1765567921054,0.5823,3076.8,3076.7,3.83071093]
[1765567921255,0.5823,3076.8,3076.7,0.58047529]
[1765567921463,0.5823,3076.8,3076.7,3.83071093]
[1765567923252,0.4825,3076.8,3076.7,3.83071093]
[1765567923549,0.4825,3076.8,3076.7,5.19571493]
[1765567923550,0.001,3076.8,3076.7,5.19571493]
[1765567923783,0.001,3076.8,3076.7,35.71371493]
[1765567923984,0.001,3076.8,3076.7,29.22309593]
[1765567924186,0.001,3076.8,3076.7,28.42393693]
[1765567924799,0.001,3076.8,3076.7,23.24231993]
[1765567924970,0.001,3076.8,3076.7,12.60645893]
[1765567925154,0.001,3076.8,3076.7,12.14045893]
[1765567925789,0.001,3076.8,3076.7,5.24771493]
[1765567925956,0.001,3076.8,3076.7,11.37255493]
[1765567926150,0.1287,3076.8,3076.7,0.58047529]
[1765567926372,0.5785,3076.8,3076.7,0.58047529]
[1765567926576,0.5785,3076.8,3075.7,4.83473151]
[1765567926752,0.5785,3076.8,3075.7,3.34573954]
[1765567926753,0.4815,3075.8,3075.7,3.34573954]
[1765567927079,0.2929,3076.7,3075.9,0.58047529]
[1765567927286,0.35440553,3076.6,3075.9,0.58047529]
[1765567927664,0.1391,3076.0,3075.9,0.58047529]
[1765567927860,0.4524,3076.6,3075.9,0.58047529]
[1765567928065,0.4524,3076.5,3075.9,0.58047529]
[1765567928265,0.4524,3076.5,3075.7,6.59703192]
[1765567928582,0.4524,3076.5,3075.9,0.58047529]
[1765567929184,0.001,3076.8,3076.1,0.58047529]
[1765567929391,0.4524,3076.7,3076.1,0.58047529]
[1765567929682,0.1391,3076.2,3076.1,0.58047529]
[1765567930388,0.5884,3076.2,3076.0,0.58047529]
[1765567930587,7.36294791,3076.8,3075.8,2.69630229]
[1765567930588,0.0045,3076.1,3075.8,2.69630229]
[1765567930768,0.4524,3076.1,3075.8,3.8316569]
[1765567930969,0.3216,3075.9,3075.8,7.5874039]
[1765567931288,0.3216,3075.9,3075.8,6.6714039]
[1765567931988,0.3216,3075.9,3075.8,6.4114039]
[1765567933189,0.7746,3075.9,3075.4,0.002]
[1765567933391,0.1103,3075.8,3075.4,6.50521908]
[1765567933740,0.1103,3075.8,3075.5,0.58047529]
[1765567933983,0.4524,3076.6,3075.8,0.4935]
[1765567934188,0.4524,3076.6,3075.9,0.12695796]
[1765567934373,0.4524,3076.6,3075.9,0.09444716]
[1765567935185,0.87455445,3076.6,3075.9,0.09444716]
[1765567935393,0.1391,3076.0,3075.9,0.09444716]
[1765567935886,0.1391,3076.0,3075.9,3.92600343]
[1765567936693,0.1391,3076.0,3075.5,1.07844716]
[1765567936694,0.1391,3076.0,3075.4,0.002]
[1765567936882,0.3203,3075.5,3075.4,3.25360954]
[1765567937395,0.5902,3075.5,3075.4,0.002]
[1765567937591,0.5902,3075.5,3075.4,3.25360954]
[1765567937784,0.5902,3075.5,3075.4,0.002]
[1765567939091,3.84170382,3075.5,3075.4,0.002]
[1765567939279,4.62125345,3075.5,3075.4,0.002]
[1765567940296,5.13925345,3075.5,3075.4,0.002]
[1765567942584,0.0027,3075.2,3075.1,1e-08]
[1765567942962,0.489,3075.2,3075.1,1e-08]
[1765567943169,1.007,3075.2,3075.1,1e-08]
[1765567944368,4.68469352,3075.2,3075.1,1e-08]
[1765567945304,0.5207,3075.2,3075.1,1e-08]
[1765567945519,0.1844,3075.6,3075.1,1e-08]
[1765567945820,0.518,3075.7,3075.2,0.09444716]
[1765567946103,0.1864,3076.1,3075.6,0.4935]
[1765567946292,0.6727,3076.3,3075.7,6.50258476]
[1765567946496,0.6727,3076.3,3075.7,3.25129238]
[1765567946806,0.6727,3076.3,3075.7,6.50258476]
[1765567947806,0.1864,3076.3,3075.7,6.50258476]
[1765567948302,0.1864,3076.3,3075.7,0.58047529]
[1765567948481,0.1864,3076.3,3075.7,0.67492245]
[1765567948676,0.518,3076.4,3075.7,1.15672245]
[1765567949395,0.001,3076.8,3076.3,0.4935]
[1765567949699,0.519,3076.8,3076.3,0.4935]
[1765567950912,0.4863,3076.7,3076.1,0.09444716]
[1765567951079,0.4863,3076.7,3076.1,7.842076]
[1765567951277,0.4863,3076.7,3076.2,3.83117148]
[1765567951705,0.4863,3076.7,3076.1,3.831303]
[1765567951907,0.1035,3076.1,3075.9,1.489]
[1765567952073,0.518,3076.3,3076.0,1.489]
[1765567952610,0.472,3076.1,3076.0,1.489]
[1765567953312,0.5897,3076.1,3076.0,1.489]
[1765567954419,0.5897,3076.1,3075.3,1.489]
[1765567954420,0.4685,3076.1,3075.3,1.489]
[1765567954633,0.518,3076.3,3075.1,1e-08]
[1765567954634,0.6584,3075.4,3075.1,1e-08]
[1765567954909,0.0012,3075.2,3075.1,1e-08]
[1765567955087,3.25302101,3075.2,3075.1,1e-08]
[1765567955281,4.50885453,3075.2,3075.1,1e-08]
[1765567957094,5.02685453,3075.2,3075.1,1e-08]
[1765567957295,0.1864,3076.3,3075.2,0.405504]
[1765567957476,0.518,3076.2,3075.2,0.405504]
[1765567957678,1.0043,3076.2,3075.2,0.405504]
[1765567958116,0.4863,3076.1,3075.2,0.405504]
[1765567958313,0.4863,3076.1,3075.1,1e-08]
[1765567958477,0.4863,3076.1,3075.1,0.19550001]
[1765567959621,6.50195058,3076.0,3075.1,0.5804753]
[1765567959932,0.69882506,3075.9,3075.1,3.25192677]
[1765567960082,1.18512506,3075.9,3075.1,3.25192677]
[1765567960407,0.69882506,3075.9,3075.1,3.44742677]
[1765567961010,0.4863,3075.8,3075.1,3.44742677]
[1765567961214,0.518,3075.7,3075.1,6.69935353]
[1765567961410,0.518,3075.7,3075.1,3.44742677]
[1765567962518,3.76933264,3075.7,3075.1,1.48900001]
[1765567962715,4.52002163,3075.7,3075.1,1.48900001]
[1765567963088,0.1035,3075.2,3075.1,1e-08]
[1765567963288,0.6215,3075.2,3075.1,1e-08]
[1765567963612,4.35582101,3075.2,3075.1,1e-08]
[1765567964020,1.104,3075.2,3075.1,1e-08]
[1765567964224,1.53957597,3075.2,3075.1,1e-08]
[1765567964591,1.104,3075.2,3075.1,1e-08]
[1765567965099,4.35582101,3075.2,3075.1,1e-08]
[1765567965594,4.9362963,3075.2,3075.1,1e-08]
[1765567968497,3.87332101,3075.2,3075.1,1e-08]
[1765567968690,4.35582101,3075.2,3075.1,1e-08]
[1765567968905,5.11657348,3075.2,3075.1,1e-08]
[1765567969305,3.83782101,3075.2,3075.1,1e-08]
[1765567969625,3.87332101,3075.2,3075.1,1e-08]
[1765567970128,4.35582101,3075.2,3075.1,1e-08]
[1765567970723,4.9362963,3075.2,3075.1,1e-08]
[1765567973731,0.405504,3074.7,3074.5,0.002]
[1765567973929,0.6486,3074.6,3074.5,0.002]
[1765567974224,1.1059,3074.6,3074.5,0.002]
[1765567976922,4.93883089,3074.6,3074.5,0.002]
[1765567978628,5.34433489,3074.6,3074.5,0.002]
[1765567978925,6.93151733,3074.6,3074.5,0.002]
[1765567980227,6.52601333,3074.6,3074.5,0.002]
[1765567981299,6.93151733,3074.6,3074.5,0.002]
[1765567981634,0.1353,3074.2,3073.3,0.002]
[1765567981831,0.1923,3073.9,3073.3,0.002]
[1765567982002,0.8487,3073.9,3073.3,0.002]
[1765567982202,1.3028,3073.9,3073.3,0.002]
[1765567982735,5.13647155,3073.9,3073.3,0.002]
[1765567983039,5.97542731,3073.9,3073.3,0.002]
[1765567983602,3.425,3074.5,3073.8,0.483]
[1765567983603,6.50533436,3074.4,3073.8,0.483]
[1765567983826,0.518,3074.3,3073.8,0.483]
[1765567984216,3.25266718,3074.4,3074.2,0.481]
[1765567984410,6.50502455,3074.6,3074.3,0.481]
[1765567984604,0.518,3074.5,3074.3,0.481]
[1765567984807,3.77062641,3074.5,3074.3,0.481]
[1765567986039,7.02325282,3074.5,3074.0,0.196]
[1765567986431,3.77062641,3074.5,3074.0,0.196]
[1765567986632,3.77062641,3074.5,3074.0,0.6589]
[1765567987617,3.77062641,3074.5,3074.1,0.4629]
[1765567987811,7.02325282,3074.5,3074.0,0.6589]
[1765567988016,3.77062641,3074.5,3074.0,0.6589]
[1765567988217,3.77062641,3074.5,3074.1,0.4629]
[1765567989146,3.25182101,3075.2,3074.4,0.481]
[1765567989334,0.518,3075.1,3074.5,0.9439]
[1765567989642,3.25203252,3075.0,3074.5,0.9439]
[1765567990033,3.25203252,3075.0,3074.6,0.4629]
[1765567990236,3.25203252,3075.0,3074.9,0.481]
[1765567990534,3.25203252,3075.0,3074.2,0.4629]
[1765567990535,7.3446507,3075.0,3074.2,0.4629]
[1765567990736,6.64246504,3075.0,3074.2,0.4629]
[1765567991120,6.64246504,3075.0,3074.0,3.91195872]
[1765567991320,6.64246504,3075.0,3074.1,0.4629]
[1765567991526,6.64246504,3075.0,3074.1,3.71587107]
[1765567991937,0.0476,3074.9,3074.2,0.4629]
[1765567992646,7.22011154,3075.0,3074.2,0.4629]
[1765567992823,6.50406504,3075.0,3074.2,0.4629]
[1765567993850,6.50406504,3075.0,3074.2,3.71574572]
[1765567994717,6.50406504,3075.0,3074.3,0.4629]
[1765567995554,3.25160954,3075.4,3074.3,0.4629]
[1765567995729,1.09847529,3075.3,3074.4,3.25266718]
[1765567995929,1.09847529,3075.3,3074.3,3.71563848]
[1765567996232,6.50321908,3075.4,3074.3,3.71565777]
[1765567996433,0.518,3075.3,3074.4,0.4629]
[1765567997450,0.9753,3075.3,3074.4,0.4629]
[1765567997628,0.74785191,3075.2,3074.4,0.4629]
[1765567998032,6.50385352,3075.1,3074.4,0.4629]
[1765567998441,3.25192676,3075.1,3074.4,0.4629]
[1765567998647,6.50385352,3075.1,3074.4,0.4629]
[1765567999354,3.25192676,3075.1,3074.4,3.71554563]
[1765567999667,6.50152784,3076.2,3075.0,0.4635]
[1765567999961,1.18679278,3076.1,3075.2,0.4635]
[1765568000116,6.50195058,3076.0,3075.2,0.4635]
[1765568000317,6.50195058,3076.0,3075.3,0.4689]
[1765568000524,0.0501,3075.9,3074.8,0.4689]
[1765568000821,0.2472,3075.3,3074.7,1.489]
[1765568001022,0.2472,3075.3,3074.4,0.4689]
[1765568001023,0.518,3075.2,3074.4,0.4689]
[1765568001286,0.518,3075.2,3074.3,1.04937529]
[1765568001425,0.518,3075.2,3074.4,0.58047529]
[1765568001831,0.518,3075.2,3074.4,1.04937529]
[1765568002126,3.25192676,3075.1,3074.5,0.4689]
[1765568002525,6.50385352,3075.1,3074.5,0.4689]
[1765568003230,3.25192676,3075.1,3074.5,0.4689]
[1765568005158,7.20603072,3075.1,3074.5,0.4689]
[1765568005363,7.20603072,3075.1,3074.0,0.196]
[1765568005364,0.2472,3074.6,3074.0,0.196]
[1765568005541,0.518,3074.5,3074.0,0.196]
[1765568005743,0.518,3074.5,3074.0,0.6649]
[1765568005942,0.518,3074.5,3074.4,0.4827]
[1765568006331,0.518,3074.5,3074.4,0.9516]
[1765568006531,3.25203252,3075.0,3074.4,0.9516]
[1765568006745,0.518,3074.9,3074.5,0.4689]
[1765568007028,7.08327149,3075.6,3074.9,0.4827]
[1765568007226,0.518,3075.5,3075.0,0.4827]
[1765568007628,7.08327149,3075.6,3075.0,0.9516]
[1765568007829,0.518,3075.5,3075.1,0.1852]
[1765568008057,0.518,3075.5,3075.1,0.6541]
[1765568008263,0.518,3075.5,3075.4,0.4827]
[1765568009756,3.76950382,3075.5,3075.4,0.4827]
[1765568009940,3.76950382,3075.5,3075.2,0.4689]
[1765568010137,0.518,3075.5,3075.4,0.4827]
[1765568010763,1.2493,3075.5,3074.0,0.196]
[1765568010974,1.2493,3075.5,3073.8,0.002]
[1765568010975,0.405504,3075.3,3073.8,0.002]
[1765568011144,0.44109793,3075.2,3074.1,0.1852]
[1765568011333,0.518,3075.1,3074.1,0.1852]
[1765568011864,0.4896,3075.0,3074.1,0.1852]
[1765568012241,0.58047529,3074.7,3074.1,0.1852]
[1765568012565,3.25118668,3075.8,3074.9,0.4827]
[1765568012771,0.518,3075.7,3075.0,0.4827]
[1765568013368,0.518,3075.7,3075.1,0.6541]
[1765568015137,3.25090599,3076.1,3075.1,0.6541]
[1765568015138,3.43711553,3076.3,3075.2,0.4689]
[1765568015471,7.01952784,3076.2,3075.2,0.4689]
[1765568015669,7.50912784,3076.2,3075.2,0.4689]
[1765568015875,1.09462434,3076.1,3075.2,0.4689]
[1765568017372,6.50195058,3076.0,3075.2,0.4689]
[1765568017754,0.041,3075.9,3075.2,0.4689]
[1765568020380,3.76918668,3075.8,3075.2,0.4689]
[1765568020890,7.02037336,3075.8,3075.2,0.4689]
[1765568021191,7.7265107,3075.8,3075.2,0.4689]
[1765568024194,1.09462434,3076.1,3075.7,0.4827]
[1765568024372,0.518,3076.0,3075.8,0.4827]
[1765568025086,0.518,3076.0,3075.4,0.4689]
[1765568025398,3.25108098,3075.9,3075.4,0.4689]
[1765568025688,3.76902282,3076.0,3075.4,0.4689]
[1765568026290,7.02004564,3076.0,3075.4,0.4689]
[1765568026701,7.02004564,3076.0,3075.1,0.1852]
[1765568026899,0.041,3075.9,3075.1,0.6541]
[1765568027070,0.041,3075.9,3075.1,3.90594688]
[1765568027270,3.25118668,3075.8,3075.2,3.72071965]
[1765568027466,3.25118668,3075.8,3075.2,0.4689]
[1765568027701,3.25118668,3075.8,3075.2,4.74077857]
[1765568027994,3.25112035,3075.9,3075.3,0.4689]
[1765568028166,4.02333105,3075.9,3075.3,0.4689]
[1765568028565,7.8050514,3075.9,3075.2,1.489]
[1765568029780,4.06433105,3075.9,3075.2,1.489]
[1765568030098,4.06433105,3075.9,3075.3,0.4689]
[1765568030099,7.3154514,3075.9,3075.3,0.4689]
[1765568030268,7.3154514,3075.9,3075.2,1.489]
[1765568030464,0.78334514,3075.8,3075.2,1.489]
[1765568031805,3.25129238,3075.7,3075.2,1.489]
[1765568032098,0.518,3075.6,3075.2,1.489]
[1765568032302,3.25098535,3076.0,3075.7,0.4947]
[1765568032512,0.518,3075.9,3075.8,0.4947]
[1765568032715,0.518,3075.9,3075.3,0.4747]
[1765568033005,0.518,3075.9,3075.8,0.4947]
[1765568033192,0.89489854,3075.9,3075.8,0.4947]
[1765568034302,0.518,3075.9,3075.8,0.4947]
[1765568035300,3.76908098,3075.9,3075.8,0.4947]
[1765568036971,4.24928098,3075.9,3075.4,1.489]
[1765568037382,3.76908098,3075.9,3075.5,0.4747]
[1765568038506,3.25108098,3075.9,3075.8,0.4947]
[1765568038705,3.76908098,3075.9,3075.8,0.4947]
[1765568040007,0.518,3075.9,3075.8,0.4947]
[1765568040214,0.518,3075.9,3075.8,0.9694]
[1765568040409,0.001,3076.5,3075.8,4.22053873]
[1765568040619,0.001,3076.5,3076.4,3.92865259]
[1765568040910,0.001,3076.5,3076.4,4.91463188]
[1765568041112,0.001,3077.3,3077.1,0.6781]
[1765568041314,0.001,3077.3,3077.2,0.9694]
[1765568041517,0.001,3077.3,3077.2,0.4947]
[1765568042280,0.001,3077.3,3077.2,0.9694]
[1765568045094,0.001,3077.3,3077.2,0.4947]
[1765568045295,0.001,3077.3,3077.2,0.9694]
[1765568046628,0.001,3077.3,3077.2,4.21910752]
[1765568047209,0.001,3077.3,3077.2,4.79958281]
[1765568049129,0.001,3077.3,3077.2,1.07517529]
[1765568049303,0.001,3077.3,3077.2,0.4947]
[1765568049507,0.001,3077.3,3077.2,4.21910752]
[1765568050118,0.001,3077.3,3077.2,0.9694]
[1765568051023,0.001,3077.3,3077.2,0.4947]
[1765568051621,0.4812,3077.3,3076.6,0.4747]
[1765568051828,0.518,3077.2,3076.6,4.30550912]
[1765568052322,0.518,3077.2,3076.8,0.58047529]
[1765568052507,0.518,3077.2,3076.7,0.58047529]
[1765568053498,3.76773564,3077.2,3076.7,0.58047529]
[1765568053862,0.6673,3076.8,3076.2,0.4747]
[1765568054128,0.6673,3076.8,3075.5,0.27784716]
[1765568054129,0.5205,3076.7,3075.6,0.4747]
[1765568054300,0.777,3076.7,3075.5,3.9095204]
[1765568054500,0.518,3076.8,3076.6,0.4947]
[1765568054698,3.97712535,3077.2,3076.7,0.4947]
[1765568054961,0.4802,3076.7,3076.3,0.1834]
[1765568055238,0.518,3076.6,3075.7,0.405504]
[1765568055398,0.518,3076.6,3075.6,0.56914716]
[1765568055599,3.25044693,3076.5,3075.7,3.25129238]
[1765568055995,3.25044693,3076.5,3075.8,0.4747]
[1765568056216,3.24970752,3077.2,3076.4,0.6781]
[1765568056411,0.84307075,3077.1,3075.9,0.405504]
[1765568056624,0.518,3077.1,3076.1,0.405504]
[1765568057131,0.518,3077.1,3075.8,0.58047529]
[1765568057132,0.518,3077.1,3076.2,0.6581]
[1765568057432,0.518,3077.1,3076.3,3.25065825]
[1765568057433,3.24991875,3077.0,3076.3,3.25065825]
[1765568057656,3.24991875,3077.0,3076.3,3.72535825]
[1765568058014,0.518,3076.9,3076.3,3.72535825]
[1765568058210,3.24991875,3077.0,3076.3,0.4747]
[1765568058414,0.518,3076.9,3076.3,0.4747]
[1765568058840,0.519,3077.3,3076.8,0.4785]
[1765568059354,0.519,3077.3,3076.9,0.4762]
[1765568059538,0.001,3077.3,3076.9,3.72618528]
[1765568059727,0.519,3077.3,3076.9,3.72618528]
[1765568059922,0.519,3077.3,3077.0,0.4762]
[1765568061550,0.4817,3077.1,3076.4,3.25053667]
[1765568061850,0.4817,3077.1,3076.5,0.58047529]
[1765568062056,0.4817,3077.1,3076.5,1.06907529]
[1765568063027,3.73155056,3077.1,3076.5,1.06907529]
[1765568063422,0.2529,3076.6,3076.2,0.1834]
[1765568063623,0.7709,3076.6,3075.9,0.4886]
[1765568063915,0.7709,3076.6,3076.0,0.58047529]
[1765568064154,4.02124808,3076.6,3076.0,0.58047529]
[1765568064329,7.27159616,3076.6,3075.8,3.2511499]
[1765568064529,7.27159616,3076.6,3075.5,0.76644716]
[1765568064530,0.4795,3076.5,3076.0,0.58047529]
[1765568064956,0.518,3076.6,3076.1,0.67]
[1765568065119,0.518,3076.5,3076.1,0.67]
[1765568065319,3.43703147,3076.9,3076.2,0.4886]
[1765568065320,0.518,3076.7,3076.2,0.4886]
[1765568065740,0.518,3076.7,3076.6,0.4633]
[1765568066529,0.518,3076.7,3076.2,4.31979459]
[1765568067025,0.518,3076.7,3075.6,3.967042]
[1765568067026,0.2494,3076.3,3075.6,3.967042]
[1765568067253,0.4322,3075.7,3074.8,4.22826105]
[1765568067442,0.1938,3075.6,3074.8,4.22823788]
[1765568067635,0.1938,3075.6,3074.7,0.1814]
[1765568067636,3.25150382,3075.5,3074.7,0.1814]
[1765568067838,6.98830764,3075.5,3074.5,3.25254771]
[1765568068061,0.4853,3075.4,3074.6,3.25243909]
[1765568068554,0.4365,3074.7,3073.7,0.4906]
[1765568068759,0.0026,3074.5,3073.9,3.25319626]
[1765568069138,0.0026,3074.5,3073.9,3.74179626]
[1765568070349,0.4879,3074.5,3073.8,0.002]
[1765568070727,3.25150382,3075.5,3074.5,0.405504]
[1765568070924,0.518,3075.4,3074.6,0.4886]
[1765568072534,0.518,3075.4,3074.7,3.25234982]
[1765568073160,0.518,3075.4,3074.7,3.74094982]
[1765568073734,3.76961708,3075.4,3074.7,3.74094982]
[1765568074064,0.518,3075.4,3074.7,3.74094982]
[1765568074567,3.76961039,3075.4,3074.7,3.74094982]
[1765568077451,0.2496,3074.8,3074.5,0.58047529]
[1765568077758,0.7676,3074.8,3074.5,0.58047529]
[1765568078253,0.518,3074.8,3074.4,0.76187529]
[1765568078569,0.518,3074.8,3074.5,3.25248324]
[1765568080174,3.25182101,3075.2,3074.5,3.25248324]
[1765568080341,0.518,3075.1,3074.5,3.74108324]
[1765568081065,0.518,3075.1,3074.5,0.4886]
[1765568081253,0.518,3075.1,3074.6,1.489]
[1765568081968,0.4817,3074.7,3074.2,0.002]
[1765568082168,3.25256139,3074.5,3074.2,0.002]
[1765568082369,0.2496,3074.3,3074.2,0.002]
[1765568083096,0.7325,3074.3,3074.2,0.002]
[1765568084168,0.2496,3074.3,3074.2,0.002]
[1765568084572,3.50237298,3074.3,3074.2,0.002]
[1765568084868,0.2496,3074.3,3074.2,0.002]
[1765568086050,4.33550388,3074.3,3074.2,0.002]
[1765568086359,3.98527298,3074.3,3074.2,0.002]
[1765568087957,4.02037298,3074.3,3074.2,0.002]
[1765568088159,4.50327298,3074.3,3074.2,0.002]
[1765568088475,4.02037298,3074.3,3074.2,0.002]
[1765568089342,0.4829,3074.6,3074.2,0.002]
[1765568089343,3.25270333,3074.4,3074.2,0.4653]
[1765568089546,0.9997,3074.3,3074.2,0.002]
[1765568090476,4.50567298,3074.3,3074.2,0.002]
[1765568090660,5.25617753,3074.3,3074.2,0.002]
[1765568096747,4.73817753,3074.3,3074.2,0.002]
[1765568096965,5.00297753,3074.3,3074.2,0.002]
[1765568097284,4.00327753,3074.3,3074.2,0.002]
[1765568097461,3.77077298,3074.3,3074.2,0.002]
[1765568097663,4.01847298,3074.3,3074.2,0.002]
[1765568098174,4.50337298,3074.3,3074.2,0.002]
[1765568098553,5.08384827,3074.3,3074.2,0.002]
[1765568098749,5.48935227,3074.3,3074.2,0.002]
[1765568098970,6.36355783,3074.3,3074.2,0.002]
[1765568100786,32.2899494,3074.3,3074.2,0.002]
[1765568101096,19.67583848,3074.3,3074.2,0.002]
[1765568101265,18.39739348,3074.3,3074.2,0.002]
[1765568101786,19.78253248,3074.3,3074.2,0.002]
[1765568102855,20.03677348,3074.3,3074.2,0.002]
[1765568103256,19.88041448,3074.3,3074.2,0.002]
[1765568104164,12.13915548,3074.3,3074.2,0.002]
[1765568104368,9.95845548,3074.3,3074.2,0.002]
[1765568104576,12.02849248,3074.3,3074.2,0.002]
[1765568104775,11.51049248,3074.3,3074.2,0.002]
[1765568105082,9.44045548,3074.3,3074.2,0.002]
[1765568105285,9.95845548,3074.3,3074.2,0.002]
[1765568107782,9.44045548,3074.3,3074.2,0.002]
[1765568107982,9.95845548,3074.3,3074.2,0.002]
[1765568109888,4.54457619,3074.3,3074.2,0.002]
[1765568110076,3.77077298,3074.3,3074.2,0.002]
[1765568110279,3.77077298,3074.3,3074.2,0.9375]
[1765568110689,6.50448808,3074.8,3074.2,0.9375]
[1765568110883,0.518,3074.7,3074.4,0.4513]
[1765568111081,1.09847529,3074.7,3074.4,0.4513]
[1765568111379,3.2524556,3074.6,3074.4,0.4513]
[1765568111580,0.518,3074.5,3074.4,0.4842]
[1765568111780,3.2524556,3074.6,3074.5,0.4513]
[1765568111984,3.7704556,3074.6,3074.5,0.4513]
[1765568112185,3.7704556,3074.6,3074.5,0.9355]
[1765568112492,0.518,3074.6,3074.5,0.9355]
[1765568113165,0.58047529,3075.4,3074.5,0.9355]
[1765568113364,6.50364202,3075.2,3074.6,0.4842]
[1765568113570,3.25182101,3075.2,3074.6,0.4842]
[1765568113932,3.76972665,3075.3,3075.1,0.6402]
[1765568114197,7.0214533,3075.3,3074.7,0.1889]
[1765568114693,0.518,3075.2,3074.8,0.4842]
[1765568115566,0.518,3075.2,3075.1,0.4513]
[1765568115771,3.76984027,3075.2,3075.1,0.4513]
[1765568116814,3.76984027,3075.2,3075.1,0.9355]
[1765568117167,3.76984027,3075.2,3075.1,0.4513]
[1765568118005,0.518,3075.2,3075.1,0.4513]
[1765568118210,0.518,3075.2,3075.1,0.933]
[1765568119477,0.518,3075.2,3074.7,0.6706]
[1765568120010,3.76990145,3075.2,3074.8,0.4817]
[1765568120223,0.518,3075.2,3075.1,0.4542]
[1765568120504,3.25122443,3075.8,3075.1,0.4542]
[1765568120702,0.89283244,3075.7,3075.2,0.47]
[1765568120868,7.3954172,3075.7,3075.2,0.47]
[1765568122489,0.2337,3075.3,3074.8,0.4801]
[1765568122792,0.5203,3075.2,3074.7,0.1889]
[1765568123126,0.518,3075.1,3074.7,0.669]
[1765568123333,1.07757529,3075.6,3074.7,0.669]
[1765568123495,1.63862849,3075.5,3075.0,0.47]